{"text_format":"1","workbook":"xlsx","n_sheets":2,"sheets":["Fuhrparkliste","Daten"],"not_rendered":{"charts":0,"images":0,"macros":0,"external_links":0,"defined_names":1,"comments":0,"pivot_tables":0},"unopened":[],"bounds":{"document_bytes":16777216,"sheet_cells":100000,"rows_first":2000,"rows_last":500,"rows_between":2000,"halvings":0,"cell_chars":16384,"cell_head_chars":4096},"cells_cut":0,"cells_raw":0,"read":"whole","date_system":"1900"}

{"sheet":"Fuhrparkliste","index":0,"n_rows":76,"n_cols":54,"rows_kept":76,"cut":false,"hidden":false,"merged":[[73,0,74,58],[72,0,72,58],[51,11,51,16],[49,0,49,10],[78,0,78,58],[14,0,14,58],[7,0,13,58],[5,0,6,58],[45,52,45,58],[46,52,46,58],[47,52,47,58],[48,52,48,58],[49,52,49,58],[50,52,50,58],[51,52,51,58],[52,52,52,58],[53,52,53,58],[36,52,36,58],[37,52,37,58],[38,52,38,58],[39,52,39,58],[40,52,40,58],[41,52,41,58],[42,52,42,58],[59,0,59,58],[60,0,61,58],[30,17,33,27],[35,52,35,58],[54,0,54,10],[54,11,54,16],[51,40,51,51],[48,40,48,51],[49,40,49,51],[50,40,50,51],[52,40,52,51],[53,40,53,51],[54,40,54,51],[54,52,54,58],[53,0,53,10],[53,11,53,16],[52,17,52,27],[53,17,53,27],[54,17,54,27],[50,0,50,10],[56,53,57,58],[56,36,57,52],[58,36,58,52],[56,31,57,35],[0,0,3,58],[75,0,77,58],[58,53,58,58],[28,40,29,47],[28,48,29,58],[15,0,16,58],[28,0,29,39],[30,0,33,10],[30,11,33,16],[30,28,33,39],[35,17,35,27],[27,0,27,58],[30,52,33,58],[30,40,33,51],[34,0,34,58],[35,0,35,10],[35,11,35,16],[41,0,41,10],[49,11,49,16],[50,17,50,27],[51,17,51,27],[48,17,48,27],[43,52,43,58],[44,52,44,58],[62,1,71,58],[62,0,71,0],[56,13,57,30],[56,8,57,12],[58,13,58,30],[58,8,58,12],[39,0,39,10],[52,28,52,39],[46,28,46,39],[47,28,47,39],[48,28,48,39],[40,28,40,39],[41,28,41,39],[42,28,42,39],[43,28,43,39],[48,0,48,10],[48,11,48,16],[43,17,43,27],[52,0,52,10],[52,11,52,16],[50,11,50,16],[51,0,51,10],[46,17,46,27],[47,17,47,27],[56,0,57,7],[38,17,38,27],[39,17,39,27],[50,28,50,39],[51,28,51,39],[53,28,53,39],[54,28,54,39],[49,17,49,27],[42,17,42,27],[46,0,46,10],[36,17,36,27],[37,17,37,27],[46,11,46,16],[47,0,47,10],[47,11,47,16],[44,0,44,10],[46,40,46,51],[47,40,47,51],[49,28,49,39],[39,11,39,16],[36,0,36,10],[36,11,36,16],[37,0,37,10],[44,17,44,27],[45,17,45,27],[37,11,37,16],[17,10,18,58],[19,10,20,58],[21,10,22,58],[23,10,24,58],[58,0,58,7],[58,31,58,35],[38,0,38,10],[38,11,38,16],[42,0,42,10],[42,11,42,16],[43,0,43,10],[43,11,43,16],[40,0,40,10],[40,11,40,16],[41,11,41,16],[40,17,40,27],[41,17,41,27],[44,11,44,16],[45,0,45,10],[45,11,45,16],[25,0,26,27],[25,28,25,40],[25,41,26,43],[25,44,26,58],[4,0,4,58],[55,0,55,58],[35,28,35,39],[36,28,36,39],[37,28,37,39],[38,28,38,39],[39,28,39,39],[44,28,44,39],[45,28,45,39],[44,40,44,51],[45,40,45,51],[35,40,35,51],[36,40,36,51],[37,40,37,51],[38,40,38,51],[39,40,39,51],[40,40,40,51],[41,40,41,51],[42,40,42,51],[43,40,43,51],[17,0,18,8],[19,0,20,8],[21,0,22,8],[23,0,24,8]]}
[" Fuhrparkliste (unverb. Berechnung \"Blaulichtversicherung\")"]
[]
[]
[]
[]
["Nutzen"]
[]
["Dieses Dokument dient ausschließlich der selbstständigen, unverbindlichen Prämienberechnung zur Einschätzung der Höhe der möglichen Prämie (Annahme und Grundlage dieser unverbindlichen Prämienberechnung ist eine Bündelversicherung aus KFZ-Haftpflicht- (20 Mio. Versicherungssumme), Rechtsschutz- (inkl. Vertragsrechtsschutz), Insassenunfall- (pro Platz) und Vollkaskoversicherung (Kollisionskasko Selbstbehalt EUR 1.000,00); bei Kranwägen inkl. Maschinenbruch). \nEs handelt sich dabei um kein Angebot im rechtlichen Sinn und keine Vertragsgrundlage."]
[]
[]
[]
[]
[]
[]
[]
["Versicherungsnehmer "]
[]
[" Name:"]
[]
[" Adresse:"]
[]
[" Ansprechpartner:"]
[]
[" Mail und Telefonnr.:"]
[]
[" Zahlungsart Standard jährlich, Zahlschein, Hauptfälligkeit 1.1",null,null,null,null,null,null,null,null,null,null,null,null,null,null,null,null,null,null,null,null,null,null,null,null,null,null,null,"mit SEPA-Lastschriftmandat",null,null,null,null,null,null,null,null,null,null,null,null,"IBAN:"]
[null,null,null,null,null,null,null,null,null,null,null,null,null,null,null,null,null,null,null,null,null,null,null,null,null,null,null,null,null,null,"jährlich",null,null,null,null,"monatlich"]
[]
[" Feuerwehrfuhrpark:",null,null,null,null,null,null,null,null,null,null,null,null,null,null,null,null,null,null,null,null,null,null,null,null,null,null,null,null,null,null,null,null,null,null,null,null,null,null,null," Gesamt:",null,null,null,null,null,null,null,{"$f":"SUM($AZ$36:$BG$55)","v":0}]
[]
["Versicherer-Polizzennummer",null,null,null,null,null,null,null,null,null,null,"Kennzeichen",null,null,null,null,null,"Gewünschter\nDeckungsbeginn",null,null,null,null,null,null,null,null,null,null,"KFZ Type/Bezeichung",null,null,null,null,null,null,null,null,null,null,null,"Anschaffungswert inkl. Geräte und Beladung zum damaligen Kaufzeitpunkt",null,null,null,null,null,null,null,null,null,null,null," jährliche Richtprämie "]
[]
[]
[]
[]
[null,null,null,null,null,null,null,null,null,null,null,null,null,null,null,null,null,null,null,null,null,null,null,null,null,null,null,null,null,null,null,null,null,null,null,null,null,null,null,null,null,null,null,null,null,null,null,null,null,null,null,null,{"$f":"IF(OR(AO36=Daten!$G$1,AC36=Daten!$G$1),\"\",IF(AC36=Daten!$C$1,Daten!$C$2,IF(AC36=Daten!$B$1,IF(AO36>Daten!$A$2,IF(AO36>Daten!$A$3,IF(AO36>Daten!$A$4,IF(AO36>Daten!$A$5,IF(AO36>Daten!$A$6,IF(AO36>Daten!$A$7,\"anfragepflichtig\",Daten!$B$7),Daten!$B$6),Daten!$B$5),Daten!$B$4),Daten!$B$3),Daten!$B$2),IF(AC36=Daten!$D$1,IF(AO36>=Daten!$G$4,IF(AO36>Daten!$A$2,IF(AO36>Daten!$A$3,\"anfragepflichtig\",Daten!$D$3),Daten!$D$2),Daten!$G$5),IF(AC36=Daten!$E$1,IF(AO36>Daten!$A$2,IF(AO36>Daten!$A$3,IF(AO36>Daten!$A$4,IF(AO36>Daten!$A$5,IF(AO36>Daten!$A$6,\"anfragepflichtig\",Daten!$E$6),Daten!$E$5),Daten!$E$4),Daten!$E$3),Daten!$E$2),IF(AC36=Daten!$F$1,IF(AO36>Daten!$A$5,IF(AO36>Daten!$A$6,IF(AO36>Daten!$A$7,\"anfragepflichtig\",Daten!$F$7),Daten!$F$6),Daten!$F$2)))))))","v":""}]
[null,null,null,null,null,null,null,null,null,null,null,null,null,null,null,null,null,null,null,null,null,null,null,null,null,null,null,null,null,null,null,null,null,null,null,null,null,null,null,null,null,null,null,null,null,null,null,null,null,null,null,null,{"$f":"IF(OR(AO37=Daten!$G$1,AC37=Daten!$G$1),\"\",IF(AC37=Daten!$C$1,Daten!$C$2,IF(AC37=Daten!$B$1,IF(AO37>Daten!$A$2,IF(AO37>Daten!$A$3,IF(AO37>Daten!$A$4,IF(AO37>Daten!$A$5,IF(AO37>Daten!$A$6,IF(AO37>Daten!$A$7,\"anfragepflichtig\",Daten!$B$7),Daten!$B$6),Daten!$B$5),Daten!$B$4),Daten!$B$3),Daten!$B$2),IF(AC37=Daten!$D$1,IF(AO37>=Daten!$G$4,IF(AO37>Daten!$A$2,IF(AO37>Daten!$A$3,\"anfragepflichtig\",Daten!$D$3),Daten!$D$2),Daten!$G$5),IF(AC37=Daten!$E$1,IF(AO37>Daten!$A$2,IF(AO37>Daten!$A$3,IF(AO37>Daten!$A$4,IF(AO37>Daten!$A$5,IF(AO37>Daten!$A$6,\"anfragepflichtig\",Daten!$E$6),Daten!$E$5),Daten!$E$4),Daten!$E$3),Daten!$E$2),IF(AC37=Daten!$F$1,IF(AO37>Daten!$A$5,IF(AO37>Daten!$A$6,IF(AO37>Daten!$A$7,\"anfragepflichtig\",Daten!$F$7),Daten!$F$6),Daten!$F$2)))))))","v":""}]
[null,null,null,null,null,null,null,null,null,null,null,null,null,null,null,null,null,null,null,null,null,null,null,null,null,null,null,null,null,null,null,null,null,null,null,null,null,null,null,null,null,null,null,null,null,null,null,null,null,null,null,null,{"$f":"IF(OR(AO38=Daten!$G$1,AC38=Daten!$G$1),\"\",IF(AC38=Daten!$C$1,Daten!$C$2,IF(AC38=Daten!$B$1,IF(AO38>Daten!$A$2,IF(AO38>Daten!$A$3,IF(AO38>Daten!$A$4,IF(AO38>Daten!$A$5,IF(AO38>Daten!$A$6,IF(AO38>Daten!$A$7,\"anfragepflichtig\",Daten!$B$7),Daten!$B$6),Daten!$B$5),Daten!$B$4),Daten!$B$3),Daten!$B$2),IF(AC38=Daten!$D$1,IF(AO38>=Daten!$G$4,IF(AO38>Daten!$A$2,IF(AO38>Daten!$A$3,\"anfragepflichtig\",Daten!$D$3),Daten!$D$2),Daten!$G$5),IF(AC38=Daten!$E$1,IF(AO38>Daten!$A$2,IF(AO38>Daten!$A$3,IF(AO38>Daten!$A$4,IF(AO38>Daten!$A$5,IF(AO38>Daten!$A$6,\"anfragepflichtig\",Daten!$E$6),Daten!$E$5),Daten!$E$4),Daten!$E$3),Daten!$E$2),IF(AC38=Daten!$F$1,IF(AO38>Daten!$A$5,IF(AO38>Daten!$A$6,IF(AO38>Daten!$A$7,\"anfragepflichtig\",Daten!$F$7),Daten!$F$6),Daten!$F$2)))))))","v":""}]
[null,null,null,null,null,null,null,null,null,null,null,null,null,null,null,null,null,null,null,null,null,null,null,null,null,null,null,null,null,null,null,null,null,null,null,null,null,null,null,null,null,null,null,null,null,null,null,null,null,null,null,null,{"$f":"IF(OR(AO39=Daten!$G$1,AC39=Daten!$G$1),\"\",IF(AC39=Daten!$C$1,Daten!$C$2,IF(AC39=Daten!$B$1,IF(AO39>Daten!$A$2,IF(AO39>Daten!$A$3,IF(AO39>Daten!$A$4,IF(AO39>Daten!$A$5,IF(AO39>Daten!$A$6,IF(AO39>Daten!$A$7,\"anfragepflichtig\",Daten!$B$7),Daten!$B$6),Daten!$B$5),Daten!$B$4),Daten!$B$3),Daten!$B$2),IF(AC39=Daten!$D$1,IF(AO39>=Daten!$G$4,IF(AO39>Daten!$A$2,IF(AO39>Daten!$A$3,\"anfragepflichtig\",Daten!$D$3),Daten!$D$2),Daten!$G$5),IF(AC39=Daten!$E$1,IF(AO39>Daten!$A$2,IF(AO39>Daten!$A$3,IF(AO39>Daten!$A$4,IF(AO39>Daten!$A$5,IF(AO39>Daten!$A$6,\"anfragepflichtig\",Daten!$E$6),Daten!$E$5),Daten!$E$4),Daten!$E$3),Daten!$E$2),IF(AC39=Daten!$F$1,IF(AO39>Daten!$A$5,IF(AO39>Daten!$A$6,IF(AO39>Daten!$A$7,\"anfragepflichtig\",Daten!$F$7),Daten!$F$6),Daten!$F$2)))))))","v":""}]
[null,null,null,null,null,null,null,null,null,null,null,null,null,null,null,null,null,null,null,null,null,null,null,null,null,null,null,null,null,null,null,null,null,null,null,null,null,null,null,null,null,null,null,null,null,null,null,null,null,null,null,null,{"$f":"IF(OR(AO40=Daten!$G$1,AC40=Daten!$G$1),\"\",IF(AC40=Daten!$C$1,Daten!$C$2,IF(AC40=Daten!$B$1,IF(AO40>Daten!$A$2,IF(AO40>Daten!$A$3,IF(AO40>Daten!$A$4,IF(AO40>Daten!$A$5,IF(AO40>Daten!$A$6,IF(AO40>Daten!$A$7,\"anfragepflichtig\",Daten!$B$7),Daten!$B$6),Daten!$B$5),Daten!$B$4),Daten!$B$3),Daten!$B$2),IF(AC40=Daten!$D$1,IF(AO40>=Daten!$G$4,IF(AO40>Daten!$A$2,IF(AO40>Daten!$A$3,\"anfragepflichtig\",Daten!$D$3),Daten!$D$2),Daten!$G$5),IF(AC40=Daten!$E$1,IF(AO40>Daten!$A$2,IF(AO40>Daten!$A$3,IF(AO40>Daten!$A$4,IF(AO40>Daten!$A$5,IF(AO40>Daten!$A$6,\"anfragepflichtig\",Daten!$E$6),Daten!$E$5),Daten!$E$4),Daten!$E$3),Daten!$E$2),IF(AC40=Daten!$F$1,IF(AO40>Daten!$A$5,IF(AO40>Daten!$A$6,IF(AO40>Daten!$A$7,\"anfragepflichtig\",Daten!$F$7),Daten!$F$6),Daten!$F$2)))))))","v":""}]
[null,null,null,null,null,null,null,null,null,null,null,null,null,null,null,null,null,null,null,null,null,null,null,null,null,null,null,null,null,null,null,null,null,null,null,null,null,null,null,null,null,null,null,null,null,null,null,null,null,null,null,null,{"$f":"IF(OR(AO41=Daten!$G$1,AC41=Daten!$G$1),\"\",IF(AC41=Daten!$C$1,Daten!$C$2,IF(AC41=Daten!$B$1,IF(AO41>Daten!$A$2,IF(AO41>Daten!$A$3,IF(AO41>Daten!$A$4,IF(AO41>Daten!$A$5,IF(AO41>Daten!$A$6,IF(AO41>Daten!$A$7,\"anfragepflichtig\",Daten!$B$7),Daten!$B$6),Daten!$B$5),Daten!$B$4),Daten!$B$3),Daten!$B$2),IF(AC41=Daten!$D$1,IF(AO41>=Daten!$G$4,IF(AO41>Daten!$A$2,IF(AO41>Daten!$A$3,\"anfragepflichtig\",Daten!$D$3),Daten!$D$2),Daten!$G$5),IF(AC41=Daten!$E$1,IF(AO41>Daten!$A$2,IF(AO41>Daten!$A$3,IF(AO41>Daten!$A$4,IF(AO41>Daten!$A$5,IF(AO41>Daten!$A$6,\"anfragepflichtig\",Daten!$E$6),Daten!$E$5),Daten!$E$4),Daten!$E$3),Daten!$E$2),IF(AC41=Daten!$F$1,IF(AO41>Daten!$A$5,IF(AO41>Daten!$A$6,IF(AO41>Daten!$A$7,\"anfragepflichtig\",Daten!$F$7),Daten!$F$6),Daten!$F$2)))))))","v":""}]
[null,null,null,null,null,null,null,null,null,null,null,null,null,null,null,null,null,null,null,null,null,null,null,null,null,null,null,null,null,null,null,null,null,null,null,null,null,null,null,null,null,null,null,null,null,null,null,null,null,null,null,null,{"$f":"IF(OR(AO42=Daten!$G$1,AC42=Daten!$G$1),\"\",IF(AC42=Daten!$C$1,Daten!$C$2,IF(AC42=Daten!$B$1,IF(AO42>Daten!$A$2,IF(AO42>Daten!$A$3,IF(AO42>Daten!$A$4,IF(AO42>Daten!$A$5,IF(AO42>Daten!$A$6,IF(AO42>Daten!$A$7,\"anfragepflichtig\",Daten!$B$7),Daten!$B$6),Daten!$B$5),Daten!$B$4),Daten!$B$3),Daten!$B$2),IF(AC42=Daten!$D$1,IF(AO42>=Daten!$G$4,IF(AO42>Daten!$A$2,IF(AO42>Daten!$A$3,\"anfragepflichtig\",Daten!$D$3),Daten!$D$2),Daten!$G$5),IF(AC42=Daten!$E$1,IF(AO42>Daten!$A$2,IF(AO42>Daten!$A$3,IF(AO42>Daten!$A$4,IF(AO42>Daten!$A$5,IF(AO42>Daten!$A$6,\"anfragepflichtig\",Daten!$E$6),Daten!$E$5),Daten!$E$4),Daten!$E$3),Daten!$E$2),IF(AC42=Daten!$F$1,IF(AO42>Daten!$A$5,IF(AO42>Daten!$A$6,IF(AO42>Daten!$A$7,\"anfragepflichtig\",Daten!$F$7),Daten!$F$6),Daten!$F$2)))))))","v":""}]
[null,null,null,null,null,null,null,null,null,null,null,null,null,null,null,null,null,null,null,null,null,null,null,null,null,null,null,null,null,null,null,null,null,null,null,null,null,null,null,null,null,null,null,null,null,null,null,null,null,null,null,null,{"$f":"IF(OR(AO43=Daten!$G$1,AC43=Daten!$G$1),\"\",IF(AC43=Daten!$C$1,Daten!$C$2,IF(AC43=Daten!$B$1,IF(AO43>Daten!$A$2,IF(AO43>Daten!$A$3,IF(AO43>Daten!$A$4,IF(AO43>Daten!$A$5,IF(AO43>Daten!$A$6,IF(AO43>Daten!$A$7,\"anfragepflichtig\",Daten!$B$7),Daten!$B$6),Daten!$B$5),Daten!$B$4),Daten!$B$3),Daten!$B$2),IF(AC43=Daten!$D$1,IF(AO43>=Daten!$G$4,IF(AO43>Daten!$A$2,IF(AO43>Daten!$A$3,\"anfragepflichtig\",Daten!$D$3),Daten!$D$2),Daten!$G$5),IF(AC43=Daten!$E$1,IF(AO43>Daten!$A$2,IF(AO43>Daten!$A$3,IF(AO43>Daten!$A$4,IF(AO43>Daten!$A$5,IF(AO43>Daten!$A$6,\"anfragepflichtig\",Daten!$E$6),Daten!$E$5),Daten!$E$4),Daten!$E$3),Daten!$E$2),IF(AC43=Daten!$F$1,IF(AO43>Daten!$A$5,IF(AO43>Daten!$A$6,IF(AO43>Daten!$A$7,\"anfragepflichtig\",Daten!$F$7),Daten!$F$6),Daten!$F$2)))))))","v":""}]
[null,null,null,null,null,null,null,null,null,null,null,null,null,null,null,null,null,null,null,null,null,null,null,null,null,null,null,null,null,null,null,null,null,null,null,null,null,null,null,null,null,null,null,null,null,null,null,null,null,null,null,null,{"$f":"IF(OR(AO44=Daten!$G$1,AC44=Daten!$G$1),\"\",IF(AC44=Daten!$C$1,Daten!$C$2,IF(AC44=Daten!$B$1,IF(AO44>Daten!$A$2,IF(AO44>Daten!$A$3,IF(AO44>Daten!$A$4,IF(AO44>Daten!$A$5,IF(AO44>Daten!$A$6,IF(AO44>Daten!$A$7,\"anfragepflichtig\",Daten!$B$7),Daten!$B$6),Daten!$B$5),Daten!$B$4),Daten!$B$3),Daten!$B$2),IF(AC44=Daten!$D$1,IF(AO44>=Daten!$G$4,IF(AO44>Daten!$A$2,IF(AO44>Daten!$A$3,\"anfragepflichtig\",Daten!$D$3),Daten!$D$2),Daten!$G$5),IF(AC44=Daten!$E$1,IF(AO44>Daten!$A$2,IF(AO44>Daten!$A$3,IF(AO44>Daten!$A$4,IF(AO44>Daten!$A$5,IF(AO44>Daten!$A$6,\"anfragepflichtig\",Daten!$E$6),Daten!$E$5),Daten!$E$4),Daten!$E$3),Daten!$E$2),IF(AC44=Daten!$F$1,IF(AO44>Daten!$A$5,IF(AO44>Daten!$A$6,IF(AO44>Daten!$A$7,\"anfragepflichtig\",Daten!$F$7),Daten!$F$6),Daten!$F$2)))))))","v":""}]
[null,null,null,null,null,null,null,null,null,null,null,null,null,null,null,null,null,null,null,null,null,null,null,null,null,null,null,null,null,null,null,null,null,null,null,null,null,null,null,null,null,null,null,null,null,null,null,null,null,null,null,null,{"$f":"IF(OR(AO45=Daten!$G$1,AC45=Daten!$G$1),\"\",IF(AC45=Daten!$C$1,Daten!$C$2,IF(AC45=Daten!$B$1,IF(AO45>Daten!$A$2,IF(AO45>Daten!$A$3,IF(AO45>Daten!$A$4,IF(AO45>Daten!$A$5,IF(AO45>Daten!$A$6,IF(AO45>Daten!$A$7,\"anfragepflichtig\",Daten!$B$7),Daten!$B$6),Daten!$B$5),Daten!$B$4),Daten!$B$3),Daten!$B$2),IF(AC45=Daten!$D$1,IF(AO45>=Daten!$G$4,IF(AO45>Daten!$A$2,IF(AO45>Daten!$A$3,\"anfragepflichtig\",Daten!$D$3),Daten!$D$2),Daten!$G$5),IF(AC45=Daten!$E$1,IF(AO45>Daten!$A$2,IF(AO45>Daten!$A$3,IF(AO45>Daten!$A$4,IF(AO45>Daten!$A$5,IF(AO45>Daten!$A$6,\"anfragepflichtig\",Daten!$E$6),Daten!$E$5),Daten!$E$4),Daten!$E$3),Daten!$E$2),IF(AC45=Daten!$F$1,IF(AO45>Daten!$A$5,IF(AO45>Daten!$A$6,IF(AO45>Daten!$A$7,\"anfragepflichtig\",Daten!$F$7),Daten!$F$6),Daten!$F$2)))))))","v":""}]
[null,null,null,null,null,null,null,null,null,null,null,null,null,null,null,null,null,null,null,null,null,null,null,null,null,null,null,null,null,null,null,null,null,null,null,null,null,null,null,null,null,null,null,null,null,null,null,null,null,null,null,null,{"$f":"IF(OR(AO46=Daten!$G$1,AC46=Daten!$G$1),\"\",IF(AC46=Daten!$C$1,Daten!$C$2,IF(AC46=Daten!$B$1,IF(AO46>Daten!$A$2,IF(AO46>Daten!$A$3,IF(AO46>Daten!$A$4,IF(AO46>Daten!$A$5,IF(AO46>Daten!$A$6,IF(AO46>Daten!$A$7,\"anfragepflichtig\",Daten!$B$7),Daten!$B$6),Daten!$B$5),Daten!$B$4),Daten!$B$3),Daten!$B$2),IF(AC46=Daten!$D$1,IF(AO46>=Daten!$G$4,IF(AO46>Daten!$A$2,IF(AO46>Daten!$A$3,\"anfragepflichtig\",Daten!$D$3),Daten!$D$2),Daten!$G$5),IF(AC46=Daten!$E$1,IF(AO46>Daten!$A$2,IF(AO46>Daten!$A$3,IF(AO46>Daten!$A$4,IF(AO46>Daten!$A$5,IF(AO46>Daten!$A$6,\"anfragepflichtig\",Daten!$E$6),Daten!$E$5),Daten!$E$4),Daten!$E$3),Daten!$E$2),IF(AC46=Daten!$F$1,IF(AO46>Daten!$A$5,IF(AO46>Daten!$A$6,IF(AO46>Daten!$A$7,\"anfragepflichtig\",Daten!$F$7),Daten!$F$6),Daten!$F$2)))))))","v":""}]
[null,null,null,null,null,null,null,null,null,null,null,null,null,null,null,null,null,null,null,null,null,null,null,null,null,null,null,null,null,null,null,null,null,null,null,null,null,null,null,null,null,null,null,null,null,null,null,null,null,null,null,null,{"$f":"IF(OR(AO47=Daten!$G$1,AC47=Daten!$G$1),\"\",IF(AC47=Daten!$C$1,Daten!$C$2,IF(AC47=Daten!$B$1,IF(AO47>Daten!$A$2,IF(AO47>Daten!$A$3,IF(AO47>Daten!$A$4,IF(AO47>Daten!$A$5,IF(AO47>Daten!$A$6,IF(AO47>Daten!$A$7,\"anfragepflichtig\",Daten!$B$7),Daten!$B$6),Daten!$B$5),Daten!$B$4),Daten!$B$3),Daten!$B$2),IF(AC47=Daten!$D$1,IF(AO47>=Daten!$G$4,IF(AO47>Daten!$A$2,IF(AO47>Daten!$A$3,\"anfragepflichtig\",Daten!$D$3),Daten!$D$2),Daten!$G$5),IF(AC47=Daten!$E$1,IF(AO47>Daten!$A$2,IF(AO47>Daten!$A$3,IF(AO47>Daten!$A$4,IF(AO47>Daten!$A$5,IF(AO47>Daten!$A$6,\"anfragepflichtig\",Daten!$E$6),Daten!$E$5),Daten!$E$4),Daten!$E$3),Daten!$E$2),IF(AC47=Daten!$F$1,IF(AO47>Daten!$A$5,IF(AO47>Daten!$A$6,IF(AO47>Daten!$A$7,\"anfragepflichtig\",Daten!$F$7),Daten!$F$6),Daten!$F$2)))))))","v":""}]
[null,null,null,null,null,null,null,null,null,null,null,null,null,null,null,null,null,null,null,null,null,null,null,null,null,null,null,null,null,null,null,null,null,null,null,null,null,null,null,null,null,null,null,null,null,null,null,null,null,null,null,null,{"$f":"IF(OR(AO48=Daten!$G$1,AC48=Daten!$G$1),\"\",IF(AC48=Daten!$C$1,Daten!$C$2,IF(AC48=Daten!$B$1,IF(AO48>Daten!$A$2,IF(AO48>Daten!$A$3,IF(AO48>Daten!$A$4,IF(AO48>Daten!$A$5,IF(AO48>Daten!$A$6,IF(AO48>Daten!$A$7,\"anfragepflichtig\",Daten!$B$7),Daten!$B$6),Daten!$B$5),Daten!$B$4),Daten!$B$3),Daten!$B$2),IF(AC48=Daten!$D$1,IF(AO48>=Daten!$G$4,IF(AO48>Daten!$A$2,IF(AO48>Daten!$A$3,\"anfragepflichtig\",Daten!$D$3),Daten!$D$2),Daten!$G$5),IF(AC48=Daten!$E$1,IF(AO48>Daten!$A$2,IF(AO48>Daten!$A$3,IF(AO48>Daten!$A$4,IF(AO48>Daten!$A$5,IF(AO48>Daten!$A$6,\"anfragepflichtig\",Daten!$E$6),Daten!$E$5),Daten!$E$4),Daten!$E$3),Daten!$E$2),IF(AC48=Daten!$F$1,IF(AO48>Daten!$A$5,IF(AO48>Daten!$A$6,IF(AO48>Daten!$A$7,\"anfragepflichtig\",Daten!$F$7),Daten!$F$6),Daten!$F$2)))))))","v":""}]
[null,null,null,null,null,null,null,null,null,null,null,null,null,null,null,null,null,null,null,null,null,null,null,null,null,null,null,null,null,null,null,null,null,null,null,null,null,null,null,null,null,null,null,null,null,null,null,null,null,null,null,null,{"$f":"IF(OR(AO49=Daten!$G$1,AC49=Daten!$G$1),\"\",IF(AC49=Daten!$C$1,Daten!$C$2,IF(AC49=Daten!$B$1,IF(AO49>Daten!$A$2,IF(AO49>Daten!$A$3,IF(AO49>Daten!$A$4,IF(AO49>Daten!$A$5,IF(AO49>Daten!$A$6,IF(AO49>Daten!$A$7,\"anfragepflichtig\",Daten!$B$7),Daten!$B$6),Daten!$B$5),Daten!$B$4),Daten!$B$3),Daten!$B$2),IF(AC49=Daten!$D$1,IF(AO49>=Daten!$G$4,IF(AO49>Daten!$A$2,IF(AO49>Daten!$A$3,\"anfragepflichtig\",Daten!$D$3),Daten!$D$2),Daten!$G$5),IF(AC49=Daten!$E$1,IF(AO49>Daten!$A$2,IF(AO49>Daten!$A$3,IF(AO49>Daten!$A$4,IF(AO49>Daten!$A$5,IF(AO49>Daten!$A$6,\"anfragepflichtig\",Daten!$E$6),Daten!$E$5),Daten!$E$4),Daten!$E$3),Daten!$E$2),IF(AC49=Daten!$F$1,IF(AO49>Daten!$A$5,IF(AO49>Daten!$A$6,IF(AO49>Daten!$A$7,\"anfragepflichtig\",Daten!$F$7),Daten!$F$6),Daten!$F$2)))))))","v":""}]
[null,null,null,null,null,null,null,null,null,null,null,null,null,null,null,null,null,null,null,null,null,null,null,null,null,null,null,null,null,null,null,null,null,null,null,null,null,null,null,null,null,null,null,null,null,null,null,null,null,null,null,null,{"$f":"IF(OR(AO50=Daten!$G$1,AC50=Daten!$G$1),\"\",IF(AC50=Daten!$C$1,Daten!$C$2,IF(AC50=Daten!$B$1,IF(AO50>Daten!$A$2,IF(AO50>Daten!$A$3,IF(AO50>Daten!$A$4,IF(AO50>Daten!$A$5,IF(AO50>Daten!$A$6,IF(AO50>Daten!$A$7,\"anfragepflichtig\",Daten!$B$7),Daten!$B$6),Daten!$B$5),Daten!$B$4),Daten!$B$3),Daten!$B$2),IF(AC50=Daten!$D$1,IF(AO50>=Daten!$G$4,IF(AO50>Daten!$A$2,IF(AO50>Daten!$A$3,\"anfragepflichtig\",Daten!$D$3),Daten!$D$2),Daten!$G$5),IF(AC50=Daten!$E$1,IF(AO50>Daten!$A$2,IF(AO50>Daten!$A$3,IF(AO50>Daten!$A$4,IF(AO50>Daten!$A$5,IF(AO50>Daten!$A$6,\"anfragepflichtig\",Daten!$E$6),Daten!$E$5),Daten!$E$4),Daten!$E$3),Daten!$E$2),IF(AC50=Daten!$F$1,IF(AO50>Daten!$A$5,IF(AO50>Daten!$A$6,IF(AO50>Daten!$A$7,\"anfragepflichtig\",Daten!$F$7),Daten!$F$6),Daten!$F$2)))))))","v":""}]
[null,null,null,null,null,null,null,null,null,null,null,null,null,null,null,null,null,null,null,null,null,null,null,null,null,null,null,null,null,null,null,null,null,null,null,null,null,null,null,null,null,null,null,null,null,null,null,null,null,null,null,null,{"$f":"IF(OR(AO51=Daten!$G$1,AC51=Daten!$G$1),\"\",IF(AC51=Daten!$C$1,Daten!$C$2,IF(AC51=Daten!$B$1,IF(AO51>Daten!$A$2,IF(AO51>Daten!$A$3,IF(AO51>Daten!$A$4,IF(AO51>Daten!$A$5,IF(AO51>Daten!$A$6,IF(AO51>Daten!$A$7,\"anfragepflichtig\",Daten!$B$7),Daten!$B$6),Daten!$B$5),Daten!$B$4),Daten!$B$3),Daten!$B$2),IF(AC51=Daten!$D$1,IF(AO51>=Daten!$G$4,IF(AO51>Daten!$A$2,IF(AO51>Daten!$A$3,\"anfragepflichtig\",Daten!$D$3),Daten!$D$2),Daten!$G$5),IF(AC51=Daten!$E$1,IF(AO51>Daten!$A$2,IF(AO51>Daten!$A$3,IF(AO51>Daten!$A$4,IF(AO51>Daten!$A$5,IF(AO51>Daten!$A$6,\"anfragepflichtig\",Daten!$E$6),Daten!$E$5),Daten!$E$4),Daten!$E$3),Daten!$E$2),IF(AC51=Daten!$F$1,IF(AO51>Daten!$A$5,IF(AO51>Daten!$A$6,IF(AO51>Daten!$A$7,\"anfragepflichtig\",Daten!$F$7),Daten!$F$6),Daten!$F$2)))))))","v":""}]
[null,null,null,null,null,null,null,null,null,null,null,null,null,null,null,null,null,null,null,null,null,null,null,null,null,null,null,null,null,null,null,null,null,null,null,null,null,null,null,null,null,null,null,null,null,null,null,null,null,null,null,null,{"$f":"IF(OR(AO52=Daten!$G$1,AC52=Daten!$G$1),\"\",IF(AC52=Daten!$C$1,Daten!$C$2,IF(AC52=Daten!$B$1,IF(AO52>Daten!$A$2,IF(AO52>Daten!$A$3,IF(AO52>Daten!$A$4,IF(AO52>Daten!$A$5,IF(AO52>Daten!$A$6,IF(AO52>Daten!$A$7,\"anfragepflichtig\",Daten!$B$7),Daten!$B$6),Daten!$B$5),Daten!$B$4),Daten!$B$3),Daten!$B$2),IF(AC52=Daten!$D$1,IF(AO52>=Daten!$G$4,IF(AO52>Daten!$A$2,IF(AO52>Daten!$A$3,\"anfragepflichtig\",Daten!$D$3),Daten!$D$2),Daten!$G$5),IF(AC52=Daten!$E$1,IF(AO52>Daten!$A$2,IF(AO52>Daten!$A$3,IF(AO52>Daten!$A$4,IF(AO52>Daten!$A$5,IF(AO52>Daten!$A$6,\"anfragepflichtig\",Daten!$E$6),Daten!$E$5),Daten!$E$4),Daten!$E$3),Daten!$E$2),IF(AC52=Daten!$F$1,IF(AO52>Daten!$A$5,IF(AO52>Daten!$A$6,IF(AO52>Daten!$A$7,\"anfragepflichtig\",Daten!$F$7),Daten!$F$6),Daten!$F$2)))))))","v":""}]
[null,null,null,null,null,null,null,null,null,null,null,null,null,null,null,null,null,null,null,null,null,null,null,null,null,null,null,null,null,null,null,null,null,null,null,null,null,null,null,null,null,null,null,null,null,null,null,null,null,null,null,null,{"$f":"IF(OR(AO53=Daten!$G$1,AC53=Daten!$G$1),\"\",IF(AC53=Daten!$C$1,Daten!$C$2,IF(AC53=Daten!$B$1,IF(AO53>Daten!$A$2,IF(AO53>Daten!$A$3,IF(AO53>Daten!$A$4,IF(AO53>Daten!$A$5,IF(AO53>Daten!$A$6,IF(AO53>Daten!$A$7,\"anfragepflichtig\",Daten!$B$7),Daten!$B$6),Daten!$B$5),Daten!$B$4),Daten!$B$3),Daten!$B$2),IF(AC53=Daten!$D$1,IF(AO53>=Daten!$G$4,IF(AO53>Daten!$A$2,IF(AO53>Daten!$A$3,\"anfragepflichtig\",Daten!$D$3),Daten!$D$2),Daten!$G$5),IF(AC53=Daten!$E$1,IF(AO53>Daten!$A$2,IF(AO53>Daten!$A$3,IF(AO53>Daten!$A$4,IF(AO53>Daten!$A$5,IF(AO53>Daten!$A$6,\"anfragepflichtig\",Daten!$E$6),Daten!$E$5),Daten!$E$4),Daten!$E$3),Daten!$E$2),IF(AC53=Daten!$F$1,IF(AO53>Daten!$A$5,IF(AO53>Daten!$A$6,IF(AO53>Daten!$A$7,\"anfragepflichtig\",Daten!$F$7),Daten!$F$6),Daten!$F$2)))))))","v":""}]
[null,null,null,null,null,null,null,null,null,null,null,null,null,null,null,null,null,null,null,null,null,null,null,null,null,null,null,null,null,null,null,null,null,null,null,null,null,null,null,null,null,null,null,null,null,null,null,null,null,null,null,null,{"$f":"IF(OR(AO54=Daten!$G$1,AC54=Daten!$G$1),\"\",IF(AC54=Daten!$C$1,Daten!$C$2,IF(AC54=Daten!$B$1,IF(AO54>Daten!$A$2,IF(AO54>Daten!$A$3,IF(AO54>Daten!$A$4,IF(AO54>Daten!$A$5,IF(AO54>Daten!$A$6,IF(AO54>Daten!$A$7,\"anfragepflichtig\",Daten!$B$7),Daten!$B$6),Daten!$B$5),Daten!$B$4),Daten!$B$3),Daten!$B$2),IF(AC54=Daten!$D$1,IF(AO54>=Daten!$G$4,IF(AO54>Daten!$A$2,IF(AO54>Daten!$A$3,\"anfragepflichtig\",Daten!$D$3),Daten!$D$2),Daten!$G$5),IF(AC54=Daten!$E$1,IF(AO54>Daten!$A$2,IF(AO54>Daten!$A$3,IF(AO54>Daten!$A$4,IF(AO54>Daten!$A$5,IF(AO54>Daten!$A$6,\"anfragepflichtig\",Daten!$E$6),Daten!$E$5),Daten!$E$4),Daten!$E$3),Daten!$E$2),IF(AC54=Daten!$F$1,IF(AO54>Daten!$A$5,IF(AO54>Daten!$A$6,IF(AO54>Daten!$A$7,\"anfragepflichtig\",Daten!$F$7),Daten!$F$6),Daten!$F$2)))))))","v":""}]
[null,null,null,null,null,null,null,null,null,null,null,null,null,null,null,null,null,null,null,null,null,null,null,null,null,null,null,null,null,null,null,null,null,null,null,null,null,null,null,null,null,null,null,null,null,null,null,null,null,null,null,null,{"$f":"IF(OR(AO55=Daten!$G$1,AC55=Daten!$G$1),\"\",IF(AC55=Daten!$C$1,Daten!$C$2,IF(AC55=Daten!$B$1,IF(AO55>Daten!$A$2,IF(AO55>Daten!$A$3,IF(AO55>Daten!$A$4,IF(AO55>Daten!$A$5,IF(AO55>Daten!$A$6,IF(AO55>Daten!$A$7,\"anfragepflichtig\",Daten!$B$7),Daten!$B$6),Daten!$B$5),Daten!$B$4),Daten!$B$3),Daten!$B$2),IF(AC55=Daten!$D$1,IF(AO55>=Daten!$G$4,IF(AO55>Daten!$A$2,IF(AO55>Daten!$A$3,\"anfragepflichtig\",Daten!$D$3),Daten!$D$2),Daten!$G$5),IF(AC55=Daten!$E$1,IF(AO55>Daten!$A$2,IF(AO55>Daten!$A$3,IF(AO55>Daten!$A$4,IF(AO55>Daten!$A$5,IF(AO55>Daten!$A$6,\"anfragepflichtig\",Daten!$E$6),Daten!$E$5),Daten!$E$4),Daten!$E$3),Daten!$E$2),IF(AC55=Daten!$F$1,IF(AO55>Daten!$A$5,IF(AO55>Daten!$A$6,IF(AO55>Daten!$A$7,\"anfragepflichtig\",Daten!$F$7),Daten!$F$6),Daten!$F$2)))))))","v":""}]
[]
["Kraftfahrzeuge",null,null,null,null,null,null,null,"Anhänger",null,null,null,null,"Anhänger mit besonderen Aufbauten",null,null,null,null,null,null,null,null,null,null,null,null,null,null,null,null,null,"Container",null,null,null,null,"Kranwägen (inkl. Maschinenbruch)",null,null,null,null,null,null,null,null,null,null,null,null,null,null,null,null,"Gesamt"]
[]
[{"$f":"COUNTIF($AC$36:$AN$55,Daten!$B$1)","v":0},null,null,null,null,null,null,null,{"$f":"COUNTIF($AC$36:$AN$55,Daten!$C$1)","v":0},null,null,null,null,{"$f":"COUNTIF($AC$36:$AN$55,Daten!$D$1)","v":0},null,null,null,null,null,null,null,null,null,null,null,null,null,null,null,null,null,{"$f":"COUNTIF($AC$36:$AN$55,Daten!$E$1)","v":0},null,null,null,null,{"$f":"COUNTIF($AC$36:$AN$55,Daten!$F$1)","v":0},null,null,null,null,null,null,null,null,null,null,null,null,null,null,null,null,{"$f":"A59+I59+N59+AF59+AK59","v":0}]
[]
["Anmerkungen (Sonderwünsche)"]
[]
[]
[]
[]
[]
[]
[]
[]
[]
[]
[]
[]
["Zusatzinformationen"]
[]
["Pro Liste können maximal 20 Fahrzeugen eingetragen werden. Detaillierte Auskünfte, vorvertragliche und vertragliche Informationen sowie eine umfassende individuelle Beratung erhalten Sie bei Wolfgang Bauer Tel: +43 5 78 91-71339 E-Mail: w.bauer@ooev.at."]

{"sheet":"Daten","index":1,"n_rows":12,"n_cols":8,"rows_kept":12,"cut":false,"hidden":true,"merged":[[11,0,18,7]]}
["Anschaffungswert","Kraftfahrzeug","Anhänger ","Anhänger mit bes. Aufbau.","Container","Kranwagen (inkl. MB)",null,"sobald wie möglich"]
[72700,539,14,324,360,5830,null,"ab Freigabe "]
[218000,574,null,358,360,null,null,"individuell"]
[436000,608,null,null,360,null,25000]
[700000,804,null,null,574,null,"anfragepflichtig"]
[1000000,1196,null,null,967,7596]
[1550000,1757,null,null,null,11057]
[]
[]
[]
["Formel"]
[{"$f":"IF(OR(AO37=Daten!$G$1,AC37=Daten!$G$1),\"\",IF(AC37=Daten!$C$1,Daten!$C$2,IF(AC37=Daten!$B$1,IF(AO37>Daten!$A$2,IF(AO37>Daten!$A$3,IF(AO37>Daten!$A$4,IF(AO37>Daten!$A$5,IF(AO37>Daten!$A$6,IF(AO37>Daten!$A$7,\"anfragepflichtig\",Daten!$B$7),Daten!$B$6),Daten!$B$5),Daten!$B$4),Daten!$B$3),Daten!$B$2),IF(AC37=Daten!$D$1,IF(AO37>=Daten!$G$4,IF(AO37>Daten!$A$2,IF(AO37>Daten!$A$3,\"anfragepflichtig\",Daten!$D$3),Daten!$D$2),Daten!$G$5),IF(AC37=Daten!$E$1,IF(AO37>Daten!$A$2,IF(AO37>Daten!$A$3,IF(AO37>Daten!$A$4,IF(AO37>Daten!$A$5,IF(AO37>Daten!$A$6,\"anfragepflichtig\",Daten!$E$6),Daten!$E$5),Daten!$E$4),Daten!$E$3),Daten!$E$2),IF(AC37=Daten!$F$1,IF(AO37>Daten!$A$5,IF(AO37>Daten!$A$6,IF(AO37>Daten!$A$7,\"anfragepflichtig\",Daten!$F$7),Daten!$F$6),Daten!$F$2)))))))","v":""}]